fUST/lending_fUST_20241224
["ID","MTS","AMOUNT","RATE_DAILY","PERIOD"]
[346536102,1735053043860,-501.48090557,0.00013698,2]
[346536103,1735053043870,-1406.24,0.00013698,2]
[346536104,1735053043879,-500.0,0.00013698,2]
[346536106,1735053043889,-501.41071916,0.00013698,2]
[346536108,1735053043899,-500.0,0.00013698,2]
[346536110,1735053043908,-500.0,0.00013698,2]
[346536111,1735053043917,-500.0,0.00013698,2]
[346536112,1735053043927,-500.0,0.00013698,2]
[346536113,1735053043937,-500.0,0.00013698,2]
[346536114,1735053043946,-506.1522701,0.00013698,2]
[346536115,1735053043956,-500.0,0.00013698,2]
[346536116,1735053043966,-511.91898471,0.00013698,2]
[346536117,1735053043975,-506.00151171,0.00013698,2]
[346536118,1735053043985,-500.0,0.00013698,2]
[346536119,1735053043995,-500.0,0.00013698,2]
[346536120,1735053044004,-500.0,0.00013698,2]
[346536121,1735053044014,-500.0,0.00013698,2]
[346536122,1735053044024,-513.22620829,0.00013698,2]
[346536123,1735053044034,-500.0,0.00013698,2]
[346536124,1735053044044,-501.6674969,0.00013698,2]
[346536125,1735053044054,-500.0,0.00013698,2]
[346536126,1735053044065,-530.30312832,0.00013698,2]
[346536127,1735053044075,-13020.4,0.00013698,2]
[346536128,1735053044084,-166.67455544,0.00013698,2]
[346536129,1735053044094,-500.0,0.00013698,2]
[346536130,1735053044104,-500.0,0.00013698,2]
[346536131,1735053044115,-500.0,0.00013698,2]
[346536132,1735053044126,-501.12597835,0.00013698,2]
[346536133,1735053044136,-500.0,0.00013698,2]
[346536134,1735053044264,-500.0,0.00013698,2]
[346536135,1735053044275,-500.0,0.00013698,2]
[346536136,1735053044285,-500.94557307,0.00013698,2]
[346536137,1735053044295,-502.58924654,0.00013698,2]
[346536138,1735053044306,-500.0,0.00013698,2]
[346536139,1735053044316,-500.0,0.00013698,2]
[346536140,1735053044327,-500.0,0.00013698,2]
[346536141,1735053044338,-500.0,0.00013698,2]
[346536142,1735053044348,-500.0,0.00013698,2]
[346536143,1735053044358,-500.0,0.00013698,2]
[346536144,1735053044368,-501.43920977,0.00013698,2]
[346536145,1735053044378,-501.07786727,0.00013698,2]
[346536146,1735053044388,-500.0,0.00013698,2]
[346536147,1735053044398,-501.870589,0.00013698,2]
[346536148,1735053044408,-500.0,0.00013698,2]
[346536149,1735053044418,-500.0,0.00013698,2]
[346536150,1735053044430,-500.0,0.00013698,2]
[346536151,1735053044440,-500.0,0.00013698,2]
[346536152,1735053044452,-500.0,0.00013698,2]
[346536153,1735053044463,-500.0,0.00013698,2]
[346536154,1735053044473,-500.0,0.00013698,2]
[346536155,1735053044483,-762.99,0.00013698,2]
[346536156,1735053044493,-500.0,0.00013698,2]
[346536157,1735053044503,-185.79293664,0.00013698,2]
[346536158,1735053044513,-500.0,0.00013698,2]
[346536159,1735053044523,-500.0,0.00013698,2]
[346536160,1735053044534,-500.0,0.00013698,2]
[346536161,1735053044545,-500.0,0.00013698,2]
[346536162,1735053044554,-523.27036684,0.00013698,2]
[346536163,1735053044564,-500.0,0.00013698,2]
[346536164,1735053044574,-500.0,0.00013698,2]
[346536165,1735053044583,-208.1,0.00013698,2]
[346536166,1735053044593,-500.0,0.00013698,2]
[346536167,1735053044603,-500.0,0.00013698,2]
[346536168,1735053044613,-500.0,0.00013698,2]
[346536169,1735053044623,-605.53,0.00013698,2]
[346536170,1735053044632,-501.11188221,0.00013698,2]
[346536171,1735053044643,-500.0,0.00013698,2]
[346536172,1735053044653,-500.0,0.00013698,2]
[346536173,1735053044663,-500.0,0.00013698,2]
[346536174,1735053044673,-500.0,0.00013698,2]
[346536175,1735053044682,-2042.66,0.00013698,2]
[346536176,1735053044692,-500.0,0.00013698,2]
[346536177,1735053044703,-500.0,0.00013698,2]
[346536178,1735053044713,-882.97,0.00013698,2]
[346536179,1735053044727,-1190.8,0.00013698,2]
[346536180,1735053044739,-500.0,0.00013698,2]
[346536181,1735053044749,-500.0,0.00013698,2]
[346536182,1735053044759,-500.0,0.00013698,2]
[346536183,1735053044768,-500.0,0.00013698,2]
[346536184,1735053044778,-500.0,0.00013698,2]
[346536185,1735053044788,-500.0,0.00013698,2]
[346536186,1735053044799,-500.0,0.00013698,2]
[346536187,1735053044814,-500.0,0.00013698,2]
[346536188,1735053044826,-500.0,0.00013698,2]
[346536189,1735053044836,-500.0,0.00013698,2]
[346536190,1735053044845,-502.39868728,0.00013698,2]
[346536191,1735053044856,-501.07097157,0.00013698,2]
[346536192,1735053044865,-500.0,0.00013698,2]
[346536193,1735053044875,-500.0,0.00013698,2]
[346536194,1735053044885,-500.0,0.00013698,2]
[346536195,1735053044895,-500.0,0.00013698,2]
[346536196,1735053044904,-500.0,0.00013698,2]
[346536197,1735053044914,-500.0,0.00013698,2]
[346536198,1735053044924,-500.0,0.00013698,2]
[346536199,1735053044933,-870.47,0.00013698,2]
[346536200,1735053044943,-500.0,0.00013698,2]
[346536201,1735053044954,-500.0,0.00013698,2]
[346536202,1735053044964,-683.53,0.00013698,2]
[346536203,1735053044973,-500.0,0.00013698,2]
[346536204,1735053044982,-503.95107987,0.00013698,2]
[346536205,1735053044992,-508.36475016,0.00013698,2]
[346536206,1735053045001,-502.8409468,0.00013698,2]
[346536207,1735053045011,-501.39340166,0.00013698,2]
[346536208,1735053045021,-500.0,0.00013698,2]
[346536209,1735053045031,-2770.18,0.00013698,2]
[346536210,1735053045041,-500.0,0.00013698,2]
[346536211,1735053045052,-500.0,0.00013698,2]
[346536212,1735053045061,-2331.23,0.00013698,2]
[346536213,1735053045071,-1070.08,0.00013698,2]
[346536214,1735053045081,-500.0,0.00013698,2]
[346536215,1735053045090,-500.78948363,0.00013698,2]
[346536216,1735053045100,-973.18,0.00013698,2]
[346536217,1735053045109,-501.70291799,0.00013698,2]
[346536218,1735053045119,-1689.15,0.00013698,2]
[346536219,1735053045129,-500.0,0.00013698,2]
[346536220,1735053045139,-9084.13,0.00013698,2]
[346536221,1735053045149,-478.55396164,0.00013698,2]
[346536222,1735053045746,-21.44603836,0.00013698,2]
[346536223,1735053045756,-1851.38,0.00013698,2]
[346536224,1735053045766,-500.0,0.00013698,2]
[346536225,1735053045776,-474.02949603,0.00013698,2]
[346536226,1735053045786,-500.0,0.00013698,2]
[346536227,1735053045796,-500.0,0.00013698,2]
[346536228,1735053045805,-1021.96,0.00013698,2]
[346536229,1735053045815,-501.43931598,0.00013698,2]
[346536230,1735053045824,-2120.61,0.00013698,2]
[346536231,1735053045834,-500.0,0.00013698,2]
[346536232,1735053045843,-500.0,0.00013698,2]
[346536233,1735053045853,-500.0,0.00013698,2]
[346536234,1735053045862,-500.0,0.00013698,2]
[346536235,1735053045872,-500.0,0.00013698,2]
[346536236,1735053045881,-500.0,0.00013698,2]
[346536237,1735053045891,-500.0,0.00013698,2]
[346536238,1735053045901,-500.0,0.00013698,2]
[346536239,1735053045911,-500.0,0.00013698,2]
[346536240,1735053045921,-500.0,0.00013698,2]
[346536241,1735053045932,-500.0,0.00013698,2]
[346536242,1735053045942,-500.0,0.00013698,2]
[346536243,1735053045952,-500.0,0.00013698,2]
[346536244,1735053045961,-500.0,0.00013698,2]
[346536245,1735053045971,-500.0,0.00013698,2]
[346536246,1735053045980,-500.0,0.00013698,2]
[346536247,1735053045990,-1000.0,0.00013698,2]
[346536248,1735053046000,-1782.63,0.00013698,2]
[346536249,1735053046009,-1538.39,0.00013698,2]
[346536250,1735053046019,-708.71,0.00013698,2]
[346536251,1735053046029,-1278.21,0.00013698,2]
[346536252,1735053046038,-500.0,0.00013698,2]
[346536253,1735053046048,-500.0,0.00013698,2]
[346536254,1735053046058,-501.51294287,0.00013698,2]
[346536255,1735053046067,-500.0,0.00013698,2]
[346536256,1735053046077,-500.0,0.00013698,2]
[346536257,1735053046086,-1980.6,0.00013698,2]
[346536258,1735053046095,-1188.47,0.00013698,2]
[346536259,1735053046104,-2532.77,0.00013698,2]
[346536260,1735053046113,-500.0,0.00013698,2]
[346536262,1735053046122,-500.0,0.00013698,2]
[346536265,1735053046132,-506.64114542,0.00013698,2]
[346536266,1735053046141,-500.0,0.00013698,2]
[346536268,1735053046150,-500.0,0.00013698,2]
[346536270,1735053046160,-500.0,0.00013698,2]
[346536271,1735053046169,-685.5,0.00013698,2]
[346536272,1735053046179,-500.0,0.00013698,2]
[346536273,1735053046187,-500.0,0.00013698,2]
[346536274,1735053046197,-1021.23,0.00013698,2]
[346536275,1735053046206,-500.0,0.00013698,2]
[346536276,1735053046215,-500.0,0.00013698,2]
[346536277,1735053046224,-500.0,0.00013698,2]
[346536278,1735053046233,-500.0,0.00013698,2]
[346536279,1735053046243,-500.0,0.00013698,2]
[346536280,1735053046252,-500.0,0.00013698,2]
[346536281,1735053046262,-500.0,0.00013698,2]
[346536282,1735053046272,-500.0,0.00013698,2]
[346536283,1735053046282,-501.03752456,0.00013698,2]
[346536284,1735053046292,-1776.15,0.00013698,2]
[346536285,1735053046302,-502.63554415,0.00013698,2]
[346536286,1735053046312,-500.0,0.00013698,2]
[346536287,1735053046321,-500.0,0.00013698,2]
[346536289,1735053046331,-500.0,0.00013698,2]
[346536290,1735053046340,-500.0,0.00013698,2]
[346536291,1735053046350,-505.83412934,0.00013698,2]
[346536292,1735053046359,-1596.0,0.00013698,2]
[346536293,1735053046369,-500.0,0.00013698,2]
[346536294,1735053046378,-500.0,0.00013698,2]
[346536295,1735053046388,-500.0,0.00013698,2]
[346536296,1735053046397,-3624.85,0.00013698,2]
[346536297,1735053046407,-500.0,0.00013698,2]
[346536298,1735053046417,-885.76,0.00013698,2]
[346536299,1735053046427,-500.0,0.00013698,2]
[346536300,1735053046436,-500.0,0.00013698,2]
[346536301,1735053046445,-500.0,0.00013698,2]
[346536302,1735053046566,-500.0,0.00013698,2]
[346536303,1735053046577,-1481.86,0.00013698,2]
[346536304,1735053046586,-500.0,0.00013698,2]
[346536305,1735053046596,-500.0,0.00013698,2]
[346536306,1735053046606,-1206.92,0.00013698,2]
[346536307,1735053046615,-1215.97,0.00013698,2]
[346536308,1735053046625,-500.0,0.00013698,2]
[346536309,1735053046635,-578.30690411,0.00013698,2]
[346536310,1735053046644,-500.0,0.00013698,2]
[346536311,1735053046655,-500.0,0.00013698,2]
[346536312,1735053046670,-638.01,0.00013698,2]
[346536313,1735053046687,-500.0,0.00013698,2]
[346536314,1735053046698,-3987.43,0.00013698,2]
[346536315,1735053046708,-505.29530694,0.00013698,2]
[346536316,1735053046718,-574.93,0.00013698,2]
[346536317,1735053046727,-1918.46,0.00013698,2]
[346536318,1735053046737,-500.0,0.00013698,2]
[346536319,1735053046747,-501.55079268,0.00013698,2]
[346536320,1735053046756,-500.0,0.00013698,2]
[346536321,1735053046765,-502.63027622,0.00013698,2]
[346536322,1735053046775,-4199.61,0.00013698,2]
[346536323,1735053046785,-505.06688197,0.00013698,2]
[346536324,1735053046794,-500.0,0.00013698,2]
[346536325,1735053046803,-500.0,0.00013698,2]
[346536326,1735053046812,-702.94,0.00013698,2]
[346536327,1735053046821,-1127.6,0.00013698,2]
[346536328,1735053046831,-500.0,0.00013698,2]
[346536329,1735053046840,-500.0,0.00013698,2]
[346536330,1735053046849,-500.0,0.00013698,2]
[346536332,1735053046859,-500.0,0.00013698,2]
[346536334,1735053046868,-500.0,0.00013698,2]
[346536336,1735053046878,-500.0,0.00013698,2]
[346536337,1735053046887,-1040.79,0.00013698,2]
[346536339,1735053046897,-500.0,0.00013698,4]
[346536340,1735053046906,-500.0,0.00013698,2]
[346536341,1735053046916,-505.0681359,0.00013698,2]
[346536342,1735053046925,-1092.23,0.00013698,2]
[346536344,1735053046935,-500.0,0.00013698,2]
[346536346,1735053046945,-21653.59,0.00013698,2]
[346536348,1735053046955,-1168.19,0.00013698,2]
[346536349,1735053046964,-500.0,0.00013698,2]
[346536350,1735053046974,-500.0,0.00013698,2]
[346536351,1735053046983,-500.0,0.00013698,2]
[346536352,1735053046993,-500.0,0.00013698,2]
[346536353,1735053047003,-500.0,0.00013698,2]
[346536354,1735053047012,-500.0,0.00013698,2]
[346536355,1735053047022,-500.0,0.00013698,2]
[346536356,1735053047032,-379.94062988,0.00013698,2]
[346536357,1735053047042,-1279.73,0.00013698,2]
[346536359,1735053047053,-503.59431192,0.00013698,2]
[346536361,1735053047063,-500.0,0.00013698,2]
[346536363,1735053047072,-500.0,0.00013698,2]
[346536365,1735053047082,-500.0,0.00013698,2]
[346536367,1735053047093,-500.0,0.00013698,2]
[346536368,1735053047102,-500.0,0.00013698,2]
[346536369,1735053047112,-735.63,0.00013698,2]
[346536370,1735053047121,-945.06,0.00013698,2]
[346536371,1735053047131,-500.0,0.00013698,2]
[346536372,1735053047141,-500.0,0.00013698,2]
[346536373,1735053047151,-584.35,0.00013698,2]
[346536374,1735053047161,-500.0,0.00013698,2]
[346536375,1735053047171,-575.97,0.00013698,2]
[346536376,1735053047180,-500.0,0.00013698,2]
[346536377,1735053047190,-500.0,0.00013698,2]
[346536378,1735053047200,-500.0,0.00013698,2]
[346536379,1735053047209,-500.0,0.00013698,2]
[346536380,1735053047221,-500.0,0.00013698,2]
[346536381,1735053047231,-7630.88,0.00013698,2]
[346536382,1735053047241,-7630.88,0.00013698,2]
[346536383,1735053047251,-7630.88,0.00013698,2]
[346536384,1735053047260,-7630.88,0.00013698,2]
[346536385,1735053047270,-7630.88,0.00013698,2]
[346536386,1735053047280,-7630.88,0.00013698,2]
[346536387,1735053047290,-7630.88,0.00013698,2]
[346536388,1735053047300,-7630.88,0.00013698,2]
[346536389,1735053047310,-5886.61,0.00013698,2]
[346536390,1735053047319,-610.03,0.00013698,2]
[346536391,1735053047330,-7630.88,0.00013698,2]
[346536392,1735053047339,-7630.88,0.00013698,2]
[346536393,1735053047349,-7630.88,0.00013698,2]
[346536394,1735053047359,-7630.88,0.00013698,2]
[346536395,1735053047368,-500.0,0.00013698,2]
[346536396,1735053047378,-151.0,0.00013698,2]
[346536397,1735053047387,-7630.88,0.00013698,2]
[346536398,1735053047397,-7630.88,0.00013698,2]
[346536399,1735053047406,-7630.88,0.00013698,2]
[346536400,1735053047416,-7630.88,0.00013698,2]
[346536401,1735053047425,-7630.88,0.00013698,2]
[346536402,1735053047435,-7630.88,0.00013698,2]
[346536403,1735053047445,-7630.88,0.00013698,2]
[346536404,1735053047455,-500.0,0.00013698,2]
[346536405,1735053047464,-7630.88,0.00013698,2]
[346536406,1735053047474,-7630.88,0.00013698,2]
[346536407,1735053047483,-7630.88,0.00013698,2]
[346536408,1735053047492,-504.40090576,0.00013698,2]
[346536409,1735053047501,-7630.88,0.00013698,2]
[346536410,1735053047511,-911.63,0.00013698,2]
[346536411,1735053047520,-7631.02029412,0.00013698,2]
[346536412,1735053047529,-2905.51,0.00013698,2]
[346536413,1735053047544,-944.88,0.00013698,2]
[346536414,1735053047555,-500.0,0.00013698,2]
[346536415,1735053047564,-1084.16,0.00013698,2]
[346536416,1735053047574,-500.0,0.00013698,2]
[346536417,1735053047586,-500.0,0.00013698,2]
[346536418,1735053047596,-500.0,0.00013698,2]
[346536419,1735053047605,-500.0,0.00013698,2]
[346536420,1735053047616,-986.1,0.00013698,2]
[346536421,1735053047627,-501.44519189,0.00013698,2]
[346536422,1735053047636,-500.87944196,0.00013698,2]
[346536423,1735053047645,-500.0,0.00013698,2]
[346536424,1735053047655,-500.0,0.00013698,2]
[346536425,1735053047664,-500.0,0.00013698,2]
[346536426,1735053047674,-500.0,0.00013698,2]
[346536427,1735053047684,-501.27073296,0.00013698,2]
[346536428,1735053047693,-3355.83,0.00013698,2]
[346536429,1735053047704,-500.0,0.00013698,2]
[346536430,1735053047714,-500.0,0.00013698,2]
[346536431,1735053047723,-500.0,0.00013698,2]
[346536432,1735053047732,-500.0,0.00013698,2]
[346536433,1735053047742,-500.0,0.00013698,2]
[346536434,1735053047751,-500.0,0.00013698,2]
[346536435,1735053047761,-500.0,0.00013698,2]
[346536436,1735053047770,-500.0,0.00013698,2]
[346536437,1735053047780,-614.57,0.00013698,2]
[346536438,1735053047790,-500.0,0.00013698,2]
[346536439,1735053047799,-3475.11,0.00013698,2]
[346536440,1735053047809,-951.6,0.00013698,2]
[346536441,1735053047818,-500.0,0.00013698,2]
[346536442,1735053047828,-500.0,0.00013698,2]
[346536443,1735053047839,-500.0,0.00013698,2]
[346536444,1735053047848,-77180.16,0.00013698,2]
[346536445,1735053047861,-2783.84,0.00013698,2]
[346536446,1735053047871,-500.0,0.00013698,2]
[346536447,1735053047881,-641.89,0.00013698,2]
[346536448,1735053047891,-500.0,0.00013698,2]
[346536449,1735053047900,-500.0,0.00013698,2]
[346536450,1735053047910,-501.34661798,0.00013698,2]
[346536451,1735053047920,-277.35666156,0.00013698,2]
[346536452,1735053047929,-500.0,0.00013698,2]
[346536453,1735053047939,-500.0,0.00013698,2]
[346536454,1735053047949,-500.0,0.00013698,2]
[346536455,1735053047958,-520.04,0.00013698,2]
[346536456,1735053047968,-500.0,0.00013698,2]
[346536457,1735053047977,-500.0,0.00013698,2]
[346536458,1735053047987,-500.0,0.00013698,2]
[346536459,1735053047996,-502.98287859,0.00013698,2]
[346536460,1735053048006,-703.92,0.00013698,2]
[346536461,1735053048016,-502.56102965,0.00013698,2]
[346536462,1735053048027,-505.45843565,0.00013698,2]
[346536463,1735053048036,-500.0,0.00013698,2]
[346536464,1735053048047,-502.27542726,0.00013698,2]
[346536465,1735053048057,-500.0,0.00013698,2]
[346536466,1735053048067,-544.39957136,0.00013698,2]
[346536467,1735053048077,-1517.23,0.00013698,2]
[346536468,1735053048087,-500.0,0.00013698,2]
[346536469,1735053048097,-500.0,0.00013698,2]
[346536470,1735053048107,-500.0,0.00013698,2]
[346536471,1735053048117,-500.0,0.00013698,2]
[346536472,1735053048127,-500.0,0.00013698,2]
[346536473,1735053048137,-3862.34,0.00013698,2]
[346536474,1735053048147,-500.0,0.00013698,2]
[346536475,1735053048157,-500.0,0.00013698,2]
[346536476,1735053048167,-500.0,0.00013698,2]
[346536477,1735053048177,-500.0,0.00013698,2]
[346536478,1735053048187,-500.0,0.00013698,2]
[346536479,1735053048199,-500.0,0.00013698,2]
[346536480,1735053048209,-500.0,0.00013698,2]
[346536481,1735053048219,-500.0,0.00013698,2]
[346536482,1735053048229,-500.0,0.00013698,2]
[346536483,1735053048238,-500.0,0.00013698,2]
[346536484,1735053048249,-500.0,0.00013698,2]
[346536485,1735053048258,-533.59,0.00013698,2]
[346536486,1735053048267,-500.0,0.00013698,2]
[346536487,1735053048276,-500.0,0.00013698,2]
[346536488,1735053048286,-500.0,0.00013698,2]
[346536489,1735053048296,-500.0,0.00013698,2]
[346536490,1735053048306,-18330.01,0.00013698,2]
[346536491,1735053048316,-500.0,0.00013698,2]
[346536492,1735053048326,-6136.7,0.00013698,2]
[346536493,1735053048336,-500.0,0.00013698,2]
[346536494,1735053048346,-269.68311098,0.00013698,2]
[346536495,1735053048355,-500.0,0.00013698,2]
[346536496,1735053048365,-996.44,0.00013698,2]
[346536497,1735053048374,-534.59275332,0.00013698,2]
[346536498,1735053048384,-501.82287092,0.00013698,2]
[346536499,1735053048395,-500.0,0.00013698,2]
[346536500,1735053048405,-500.0,0.00013698,2]
[346536501,1735053048415,-500.0,0.00013698,2]
[346536502,1735053048425,-500.26226255,0.00013698,2]
[346536503,1735053048435,-500.0,0.00013698,2]
[346536504,1735053048445,-1334.45,0.00013698,2]
[346536505,1735053048455,-500.0,0.00013698,2]
[346536506,1735053048465,-501.66339903,0.00013698,2]
[346536507,1735053048474,-500.0,0.00013698,2]
[346536508,1735053048484,-500.0,0.00013698,2]
[346536509,1735053048493,-501.88471905,0.00013698,2]
[346536510,1735053048503,-500.0,0.00013698,2]
[346536511,1735053048513,-500.0,0.00013698,2]
[346536512,1735053048522,-530.75,0.00013698,2]
[346536513,1735053048534,-1468.76,0.00013698,2]
[346536514,1735053048545,-500.0,0.00013698,2]
[346536515,1735053048555,-500.0,0.00013698,2]
[346536516,1735053048564,-500.0,0.00013698,2]
[346536517,1735053048574,-502.62169519,0.00013698,2]
[346536518,1735053048583,-500.0,0.00013698,2]
[346536519,1735053048593,-500.0,0.00013698,2]
[346536520,1735053048603,-1972.74,0.00013698,2]
[346536521,1735053048612,-500.0,0.00013698,2]
[346536522,1735053048622,-500.0,0.00013698,2]
[346536523,1735053048632,-212.236,0.00013698,2]
[346536524,1735053048642,-500.0,0.00013698,2]
[346536525,1735053048758,-206.1129178,0.00013699,2]
[346536526,1735053048769,-2330.9509373,0.00013699,2]
[346536527,1735053048778,-151.0,0.000137,2]
[346536528,1735053048788,-151.0,0.000137,2]
[346536529,1735053048799,-151.0,0.000137,2]
[346536530,1735053048808,-151.0,0.000137,2]
[346536531,1735053048819,-151.0,0.00013738,2]
[346536532,1735053048828,-166.0,0.00013738,2]
[346536533,1735053048838,-153.4013351,0.00013749,2]
[346536534,1735053048848,-151.0,0.000138,2]
[346536535,1735053048857,-151.0,0.000138,2]
[346536536,1735053048867,-151.0,0.000138,2]
[346536537,1735053048877,-151.0,0.000138,2]
[346536538,1735053048887,-151.0,0.000138,2]
[346536539,1735053048897,-151.0,0.000138,2]
[346536540,1735053048908,-151.0,0.000138,2]
[346536541,1735053048918,-151.0,0.000138,2]
[346536542,1735053048928,-500.0,0.00013835,2]
[346536543,1735053048937,-666.0,0.00013872,2]
[346536544,1735053048947,-2000.0,0.000139,2]
[346536545,1735053048957,-151.0,0.000139,2]
[346536546,1735053048967,-151.0,0.000139,2]
[346536547,1735053048977,-151.0,0.000139,2]
[346536548,1735053048986,-151.0,0.000139,2]
[346536549,1735053048996,-151.0,0.000139,2]
[346536550,1735053049007,-151.0,0.000139,2]
[346536551,1735053049017,-151.0,0.000139,2]
[346536552,1735053049028,-151.0,0.000139,2]
[346536553,1735053049038,-2000.0,0.000139,2]
[346536554,1735053049049,-151.0,0.000139,2]
[346536555,1735053049060,-151.0,0.000139,2]
[346536556,1735053049070,-151.0,0.000139,2]
[346536557,1735053049080,-151.0,0.000139,2]
[346536558,1735053049090,-150.0,0.000139,2]
[346536559,1735053049100,-341.09702376,0.00013926,2]
[346536560,1735053049110,-1500.0,0.0001397,2]
[346536561,1735053049120,-1500.0,0.0001397,2]
[346536562,1735053049131,-1500.0,0.0001397,2]
[346536563,1735053049142,-1500.0,0.0001397,2]
[346536564,1735053049152,-1500.0,0.0001397,2]
[346536565,1735053049163,-1636.7,0.0001397,2]
[346536566,1735053049176,-1500.0,0.0001397,2]
[346536567,1735053049186,-1500.0,0.0001397,2]
[346536568,1735053049196,-1500.0,0.0001397,2]
[346536569,1735053049208,-1500.0,0.0001397,2]
[346536570,1735053049219,-1500.0,0.0001397,2]
[346536571,1735053049231,-160.0,0.00013971,2]
[346536572,1735053049241,-160.0,0.00013971,2]
[346536573,1735053049251,-1335081.61440993,0.00013972,2]
[346536574,1735053049465,-684.46976346,0.00013972,2]
[346536575,1735053049802,-482.826972,0.00013673,2]
[346536576,1735053049814,-17.173028,0.00013673,2]
[346536577,1735053049824,-346.16,0.00013697,2]
[346536578,1735053049834,-500.0,0.00013698,2]
[346536579,1735053049844,-1573.561812,0.00013972,2]
[346536582,1735053288954,5923.0,0.00016,60]
[346536597,1735054044360,-1857.2064609,0.00012672,2]
[346536598,1735054044384,-1814.0117308,0.00012708,2]
[346536599,1735054044405,-169.92,0.00013168,2]
[346536600,1735054044430,-375.382,0.0001354,2]
[346536601,1735054044453,-300.0,0.00013696,2]
[346536602,1735054044476,-300.0,0.00013696,2]
[346536603,1735054044499,-535.24653413,0.00013697,2]
[346536604,1735054044521,-500.0,0.00013697,2]
[346536605,1735054044544,-500.0,0.00013697,2]
[346536606,1735054044567,-500.0,0.00013697,2]
[346536607,1735054044589,-500.0,0.00013697,2]
[346536608,1735054044613,-500.0,0.00013697,2]
[346536609,1735054044634,-500.0,0.00013697,2]
[346536610,1735054044656,-500.0,0.00013697,2]
[346536611,1735054044677,-280.88451862,0.00013697,2]
[346536612,1735054044700,-486.00071459,0.00013697,2]
[346536818,1735054235182,-300.0,0.00013696,2]
[346536819,1735054235192,-300.0,0.00013696,2]
[346536820,1735054235202,-13.99928541,0.00013697,2]
[346536821,1735054235212,-464.46284393,0.00013697,2]
[346536822,1735054235222,-500.0,0.00013697,2]
[346536823,1735054235231,-500.0,0.00013697,2]
[346536824,1735054235241,-500.0,0.00013697,2]
[346536825,1735054235251,-500.0,0.00013697,2]
[346536826,1735054235260,-500.0,0.00013697,2]
[346536827,1735054235270,-500.0,0.00013697,2]
[346536829,1735054235280,-500.0,0.00013697,2]
[346536830,1735054235290,-500.0,0.00013697,2]
[346536832,1735054235299,-500.0,0.00013697,2]
[346536834,1735054235308,-500.0,0.00013697,2]
[346536837,1735054235318,-500.0,0.00013697,2]
[346536840,1735054235327,-500.0,0.00013697,2]
[346536842,1735054235336,-500.0,0.00013697,2]
[346536845,1735054235346,-500.0,0.00013697,2]
[346536847,1735054235355,-500.0,0.00013697,2]
[346536849,1735054235365,-500.0,0.00013697,2]
[346536851,1735054235374,-500.0,0.00013697,2]
[346536852,1735054235384,-500.0,0.00013697,2]
[346536854,1735054235393,-500.0,0.00013697,2]
[346536856,1735054235403,-207.43704568,0.00013697,2]
[346536858,1735054235412,-500.0,0.00013697,2]
[346536859,1735054235422,-500.0,0.00013697,2]